[Event "*** Titled Tuesday Blitz"]
[Site "Chess.com"]
[Date "2020.11.10"]
[Round "3"]
[White "Shuvalov"]
[Black "A-Fier"]
[Result "0-1"]
[WhiteElo "2445"]
[BlackElo "2763"]
[TimeControl "180+1"]
[EndTime "10:32:33 PST"]
[Termination "A-Fier won by resignation"]

1. Nf3 {[%clk 0:03:00.9]} 1... Nf6 {[%clk 0:02:59.7]} 2. c4 {[%clk 0:02:58.2]}
2... e6 {[%clk 0:02:59.9]} 3. g3 {[%clk 0:02:58]} 3... d5 {[%clk 0:03:00.8]} 4.
Bg2 {[%clk 0:02:57.8]} 4... Be7 {[%clk 0:03:00.5]} 5. O-O {[%clk 0:02:57.9]}
5... O-O {[%clk 0:03:01.1]} 6. b3 {[%clk 0:02:58.5]} 6... a5 {[%clk 0:02:57.9]}
7. Nc3 {[%clk 0:02:56.9]} 7... c6 {[%clk 0:02:41.5]} 8. e3 {[%clk 0:02:56.8]}
8... Nbd7 {[%clk 0:02:42]} 9. Bb2 {[%clk 0:02:55.8]} 9... a4 {[%clk 0:02:40.8]}
10. Nxa4 {[%clk 0:02:52.3]} 10... dxc4 {[%clk 0:02:37.3]} 11. bxc4 {[%clk
0:02:51.6]} 11... Qa5 {[%clk 0:02:25.4]} 12. Nc3 {[%clk 0:02:49]} 12... Rd8
{[%clk 0:02:25.4]} 13. Qc2 {[%clk 0:02:42.8]} 13... Nb6 {[%clk 0:02:24.1]} 14.
d3 {[%clk 0:02:40.3]} 14... Qh5 {[%clk 0:02:24]} 15. Ne2 {[%clk 0:02:35.8]}
15... Nbd7 {[%clk 0:02:13.8]} 16. d4 {[%clk 0:02:26.3]} 16... c5 {[%clk
0:02:08]} 17. Nf4 {[%clk 0:02:22.1]} 17... Qh6 {[%clk 0:02:08]} 18. d5 {[%clk
0:02:17.6]} 18... exd5 {[%clk 0:02:03.3]} 19. Nxd5 {[%clk 0:02:06.6]} 19... Nxd5
{[%clk 0:02:02.9]} 20. cxd5 {[%clk 0:02:07.5]} 20... Nf6 {[%clk 0:02:03.3]} 21.
e4 {[%clk 0:02:05.5]} 21... Bh3 {[%clk 0:02:02]} 22. Ne5 {[%clk 0:01:58.7]}
22... Bxg2 {[%clk 0:01:59.9]} 23. Kxg2 {[%clk 0:01:59.6]} 23... Bd6 {[%clk
0:01:56.2]} 24. f3 {[%clk 0:01:58.1]} 24... b5 {[%clk 0:01:54.4]} 25. Nc6 {[%clk
0:01:57.3]} 25... Re8 {[%clk 0:01:52]} 26. Rfe1 {[%clk 0:01:41.1]} 26... Qg6
{[%clk 0:01:51.7]} 27. Qb3 {[%clk 0:01:28]} 27... Nh5 {[%clk 0:01:18.9]} 28. e5
{[%clk 0:01:23.2]} 28... c4 {[%clk 0:01:19.3]} 29. Qxb5 {[%clk 0:01:19]} 29...
Qc2+ {[%clk 0:01:18.9]} 30. Kh1 {[%clk 0:01:12.2]} 30... c3 {[%clk 0:01:17.8]}
31. Bc1 {[%clk 0:00:57.2]} 31... Qf2 {[%clk 0:00:54.2]} 32. Qe2 {[%clk
0:00:54.3]} 32... Qc5 {[%clk 0:00:54.4]} 33. Qe4 {[%clk 0:00:43.4]} 33... Nf6
{[%clk 0:00:53]} 34. Qd4 {[%clk 0:00:39.8]} 34... Qxd4 {[%clk 0:00:53]} 35. Nxd4
{[%clk 0:00:40.7]} 35... Bxe5 {[%clk 0:00:53.4]} 36. Nc6 {[%clk 0:00:39.1]}
36... Bd6 {[%clk 0:00:50.6]} 37. Rxe8+ {[%clk 0:00:38]} 37... Rxe8 {[%clk
0:00:51.5]} 38. Bf4 {[%clk 0:00:32.6]} 38... Bxf4 {[%clk 0:00:50.5]} 39. gxf4
{[%clk 0:00:33.5]} 39... Nxd5 {[%clk 0:00:51.4]} 40. Rd1 {[%clk 0:00:29.3]}
40... c2 {[%clk 0:00:48.6]} 41. Rc1 {[%clk 0:00:29.1]} 41... Nxf4 {[%clk
0:00:49.2]} 42. h4 {[%clk 0:00:24.6]} 42... h5 {[%clk 0:00:30.3]} 43. Rxc2
{[%clk 0:00:23.4]} 43... Re3 {[%clk 0:00:30.7]} 44. Nd4 {[%clk 0:00:21.7]} 44...
Rd3 {[%clk 0:00:29.6]} 45. Rc4 {[%clk 0:00:21.1]} 45... Ra3 {[%clk 0:00:28.7]}
46. Rc2 {[%clk 0:00:20.3]} 46... Rd3 {[%clk 0:00:26.7]} 47. Rc4 {[%clk
0:00:20.4]} 47... Nd5 {[%clk 0:00:27]} 48. a4 {[%clk 0:00:17.8]} 48... Ra3
{[%clk 0:00:26]} 49. Nb5 {[%clk 0:00:16.8]} 49... Rxf3 {[%clk 0:00:24.3]} 50. a5
{[%clk 0:00:17]} 50... Rf1+ {[%clk 0:00:24.4]} 51. Kg2 {[%clk 0:00:16.7]} 51...
Ra1 {[%clk 0:00:25.3]} 52. Rc5 {[%clk 0:00:15]} 52... Nf4+ {[%clk 0:00:24.9]}
53. Kf3 {[%clk 0:00:15]} 53... Ne6 {[%clk 0:00:24]} 54. Rxh5 {[%clk 0:00:13.9]}
54... Rxa5 {[%clk 0:00:22.8]} 55. Rd5 {[%clk 0:00:12.6]} 55... Rxb5 {[%clk
0:00:23.1]} 56. Rxb5 {[%clk 0:00:11.5]} 56... Nd4+ {[%clk 0:00:23.4]} 57. Kg4
{[%clk 0:00:12.4]} 57... Nxb5 {[%clk 0:00:24.3]} 58. Kf5 {[%clk 0:00:12.6]}
58... Nc7 {[%clk 0:00:24.7]} 59. h5 {[%clk 0:00:13.1]} 59... Ne6 {[%clk
0:00:25.6]} 60. Kg4 {[%clk 0:00:11.4]} 60... Kh7 {[%clk 0:00:26]} 61. Kf5 {[%clk
0:00:11.5]} 61... Kh6 {[%clk 0:00:26.9]} 62. Kg4 {[%clk 0:00:12]} 62... Ng5
{[%clk 0:00:26.9]} 63. Kh4 {[%clk 0:00:12.2]} 63... f5 {[%clk 0:00:27.1]} 64.
Kg3 {[%clk 0:00:11.1]} 64... Kxh5 {[%clk 0:00:28]} 65. Kf4 {[%clk 0:00:12]}
65... Kg6 {[%clk 0:00:28.7]} 66. Kg3 {[%clk 0:00:12.1]} 66... Kf6 {[%clk
0:00:29.6]} 0-1

[Event "*** Titled Tuesday Blitz"]
[Site "Chess.com"]
[Date "2020.11.10"]
[Round "3"]
[White "akanga001"]
[Black "Blitzking642"]
[Result "0-1"]
[WhiteElo "1910"]
[BlackElo "2266"]
[TimeControl "180+1"]
[EndTime "10:32:33 PST"]
[Termination "Blitzking642 won on time"]

1. d4 {[%clk 0:03:00.9]} 1... Nf6 {[%clk 0:02:59.1]} 2. c4 {[%clk 0:03:00.3]}
2... e6 {[%clk 0:02:59.4]} 3. Nf3 {[%clk 0:02:58.4]} 3... c5 {[%clk 0:02:58.6]}
4. d5 {[%clk 0:02:57.4]} 4... exd5 {[%clk 0:02:59.5]} 5. cxd5 {[%clk 0:02:57.3]}
5... d6 {[%clk 0:03:00]} 6. Nc3 {[%clk 0:02:57.3]} 6... g6 {[%clk 0:02:58.8]} 7.
e4 {[%clk 0:02:54.7]} 7... a6 {[%clk 0:02:58.3]} 8. a4 {[%clk 0:02:52.4]} 8...
Bg4 {[%clk 0:02:58.7]} 9. Be2 {[%clk 0:02:44.9]} 9... Bxf3 {[%clk 0:02:57.4]}
10. Bxf3 {[%clk 0:02:43.7]} 10... Nbd7 {[%clk 0:02:57.7]} 11. O-O {[%clk
0:02:41.9]} 11... Bg7 {[%clk 0:02:58.1]} 12. Bf4 {[%clk 0:02:41]} 12... Qe7
{[%clk 0:02:56.1]} 13. Re1 {[%clk 0:02:33.8]} 13... Ne5 {[%clk 0:02:48.3]} 14.
Be2 {[%clk 0:02:29.3]} 14... O-O {[%clk 0:02:45.5]} 15. Bg3 {[%clk 0:02:27.6]}
15... g5 {[%clk 0:02:41.7]} 16. Qd2 {[%clk 0:02:21.6]} 16... h6 {[%clk
0:02:39.8]} 17. a5 {[%clk 0:02:09.8]} 17... Rfe8 {[%clk 0:02:35.8]} 18. Bf1
{[%clk 0:02:08.5]} 18... Nh5 {[%clk 0:02:29.4]} 19. Na4 {[%clk 0:02:05.7]} 19...
Ng6 {[%clk 0:02:25.2]} 20. Nb6 {[%clk 0:02:01.1]} 20... Rad8 {[%clk 0:02:24]}
21. f3 {[%clk 0:01:52.5]} 21... Nxg3 {[%clk 0:02:20.2]} 22. hxg3 {[%clk
0:01:51.3]} 22... Qe5 {[%clk 0:02:12.8]} 23. Kh2 {[%clk 0:01:37.8]} 23... Qxb2
{[%clk 0:02:09.6]} 24. Qxb2 {[%clk 0:01:29]} 24... Bxb2 {[%clk 0:02:10.5]} 25.
Ra2 {[%clk 0:01:28.1]} 25... Bd4 {[%clk 0:01:54]} 26. Nc4 {[%clk 0:01:27.1]}
26... Ne5 {[%clk 0:01:27.6]} 27. Ne3 {[%clk 0:01:24.5]} 27... Bxe3 {[%clk
0:01:22.6]} 28. Rxe3 {[%clk 0:01:23.3]} 28... f5 {[%clk 0:01:23]} 29. Rb2 {[%clk
0:01:16.9]} 29... Re7 {[%clk 0:01:11.5]} 30. Rb6 {[%clk 0:01:14.5]} 30... f4
{[%clk 0:01:00.6]} 31. gxf4 {[%clk 0:01:11.5]} 31... gxf4 {[%clk 0:01:01.5]} 32.
Reb3 {[%clk 0:01:09.4]} 32... Rdd7 {[%clk 0:01:01.9]} 33. Be2 {[%clk 0:01:00.6]}
33... Kg7 {[%clk 0:01:01.4]} 34. Bd1 {[%clk 0:00:57.4]} 34... Kf6 {[%clk
0:00:52.2]} 35. g3 {[%clk 0:00:56.9]} 35... fxg3+ {[%clk 0:00:40.6]} 36. Kxg3
{[%clk 0:00:56.3]} 36... Rg7+ {[%clk 0:00:40.8]} 37. Kf2 {[%clk 0:00:55.4]}
37... Nc4 {[%clk 0:00:30.9]} 38. f4 {[%clk 0:00:37.4]} 38... Nxb6 {[%clk
0:00:30.8]} 39. Rxb6 {[%clk 0:00:35.4]} 39... Ke7 {[%clk 0:00:29.9]} 40. Bh5
{[%clk 0:00:19.2]} 40... Kd8 {[%clk 0:00:25.3]} 41. Bf3 {[%clk 0:00:17.9]} 41...
Kc7 {[%clk 0:00:20.5]} 42. e5 {[%clk 0:00:17.6]} 42... Rge7 {[%clk 0:00:18.9]}
43. e6 {[%clk 0:00:16.9]} 43... Rd8 {[%clk 0:00:18.7]} 44. Bg4 {[%clk
0:00:14.7]} 44... Rg8 {[%clk 0:00:17.2]} 45. Kf3 {[%clk 0:00:13.6]} 45... Reg7
{[%clk 0:00:17]} 46. Bh5 {[%clk 0:00:11.2]} 46... Rg3+ {[%clk 0:00:16.7]} 47.
Ke4 {[%clk 0:00:10.6]} 47... Rh3 {[%clk 0:00:16.3]} 48. Bf7 {[%clk 0:00:09.5]}
48... Rf8 {[%clk 0:00:14]} 49. Kf5 {[%clk 0:00:07.7]} 49... Rg3 {[%clk
0:00:09.5]} 50. Rb2 {[%clk 0:00:06.6]} 50... Rg7 {[%clk 0:00:09.2]} 51. Kf6
{[%clk 0:00:02.3]} 51... Rgg8 {[%clk 0:00:08.1]} 52. f5 {[%clk 0:00:01.1]} 52...
h5 {[%clk 0:00:07.6]} 0-1

[Event "*** Titled Tuesday Blitz"]
[Site "Chess.com"]
[Date "2020.11.10"]
[Round "3"]
[White "Bastiandash"]
[Black "amiralfio"]
[Result "1-0"]
[WhiteElo "2363"]
[BlackElo "2532"]
[TimeControl "180+1"]
[EndTime "10:32:35 PST"]
[Termination "Bastiandash won by resignation"]

1. d4 {[%clk 0:03:00.9]} 1... d5 {[%clk 0:02:59.8]} 2. Nf3 {[%clk 0:02:58.2]}
2... Nf6 {[%clk 0:03:00]} 3. Bg5 {[%clk 0:02:58.8]} 3... Nbd7 {[%clk 0:02:54.2]}
4. Nbd2 {[%clk 0:02:59.1]} 4... e6 {[%clk 0:02:51.4]} 5. e3 {[%clk 0:02:59.4]}
5... c5 {[%clk 0:02:44.3]} 6. c3 {[%clk 0:02:59]} 6... Bd6 {[%clk 0:02:43.1]} 7.
Bd3 {[%clk 0:02:59.1]} 7... Qc7 {[%clk 0:02:41.2]} 8. O-O {[%clk 0:02:58.6]}
8... h6 {[%clk 0:02:32.3]} 9. Bh4 {[%clk 0:02:57.5]} 9... g5 {[%clk 0:02:17.6]}
10. Bg3 {[%clk 0:02:55.9]} 10... e5 {[%clk 0:02:17.3]} 11. dxe5 {[%clk
0:02:53.3]} 11... Nxe5 {[%clk 0:02:18.2]} 12. Nxe5 {[%clk 0:02:54]} 12... Bxe5
{[%clk 0:02:19.1]} 13. Bxe5 {[%clk 0:02:50.4]} 13... Qxe5 {[%clk 0:02:20]} 14.
Bb5+ {[%clk 0:02:50.8]} 14... Kf8 {[%clk 0:02:16.1]} 15. Be2 {[%clk 0:02:16.1]}
15... Be6 {[%clk 0:02:01.9]} 16. Qb3 {[%clk 0:02:01.4]} 16... Qc7 {[%clk
0:01:44.1]} 17. Qc2 {[%clk 0:01:57.6]} 17... Kg7 {[%clk 0:01:37]} 18. e4 {[%clk
0:01:56.3]} 18... Rhe8 {[%clk 0:01:28.2]} 19. exd5 {[%clk 0:01:52.3]} 19... Nxd5
{[%clk 0:01:26.9]} 20. Bf3 {[%clk 0:01:48.6]} 20... Nf4 {[%clk 0:01:24.3]} 21.
Rfe1 {[%clk 0:01:43.7]} 21... Rad8 {[%clk 0:01:20.1]} 22. Rad1 {[%clk
0:01:28.2]} 22... Nd3 {[%clk 0:01:03.4]} 23. Re3 {[%clk 0:01:20.9]} 23... Bf5
{[%clk 0:00:58.8]} 24. Be4 {[%clk 0:01:12.1]} 24... Bxe4 {[%clk 0:00:44.8]} 25.
Nxe4 {[%clk 0:01:13]} 25... c4 {[%clk 0:00:40.1]} 26. Ng3 {[%clk 0:00:45]} 26...
Rxe3 {[%clk 0:00:13.9]} 27. Nf5+ {[%clk 0:00:44.8]} 27... Kg6 {[%clk 0:00:10.9]}
28. Nxe3 {[%clk 0:00:45.7]} 28... b5 {[%clk 0:00:08.9]} 29. Qe2 {[%clk
0:00:35.3]} 29... Qf4 {[%clk 0:00:08.1]} 30. g3 {[%clk 0:00:33.5]} 30... Qe4
{[%clk 0:00:07.7]} 31. b3 {[%clk 0:00:24.5]} 31... Re8 {[%clk 0:00:04.4]} 32.
bxc4 {[%clk 0:00:22.2]} 32... bxc4 {[%clk 0:00:05.3]} 33. Qf1 {[%clk 0:00:14.8]}
33... f5 {[%clk 0:00:05.2]} 34. Rb1 {[%clk 0:00:13.5]} 34... f4 {[%clk
0:00:04.6]} 35. Ng2 {[%clk 0:00:06.4]} 35... f3 {[%clk 0:00:03.8]} 36. Ne3
{[%clk 0:00:05.3]} 36... Ne5 {[%clk 0:00:04.1]} 37. Qh3 {[%clk 0:00:04.9]} 37...
h5 {[%clk 0:00:04.1]} 38. Rd1 {[%clk 0:00:03.8]} 38... g4 {[%clk 0:00:04.3]} 39.
Qh4 {[%clk 0:00:04.3]} 39... Kh6 {[%clk 0:00:03.7]} 40. Rd6+ {[%clk 0:00:04.5]}
40... Ng6 {[%clk 0:00:03]} 41. Qf6 {[%clk 0:00:03.6]} 41... Qb1+ {[%clk
0:00:02.9]} 42. Rd1 {[%clk 0:00:03.6]} 42... Qe4 {[%clk 0:00:03]} 43. Nf5+
{[%clk 0:00:03.7]} 43... Qxf5 {[%clk 0:00:02.1]} 44. Qxf5 {[%clk 0:00:04.6]}
44... Re2 {[%clk 0:00:01.7]} 45. h3 {[%clk 0:00:03.4]} 45... gxh3 {[%clk
0:00:01.7]} 46. Qxh3 {[%clk 0:00:03.6]} 46... h4 {[%clk 0:00:02.6]} 47. Qf5
{[%clk 0:00:03.9]} 47... Kg7 {[%clk 0:00:02.7]} 48. Qxf3 {[%clk 0:00:04.3]}
48... Kh6 {[%clk 0:00:03.6]} 49. Qxe2 {[%clk 0:00:04.7]} 49... hxg3 {[%clk
0:00:03.7]} 50. fxg3 {[%clk 0:00:05.6]} 50... Kg5 {[%clk 0:00:04.2]} 51. Qe3+
{[%clk 0:00:06.5]} 51... Kf6 {[%clk 0:00:04.3]} 52. Rd6+ {[%clk 0:00:06.8]}
52... Kf5 {[%clk 0:00:05.2]} 53. Rxg6 {[%clk 0:00:06.8]} 53... Kxg6 {[%clk
0:00:05.4]} 54. Qf4 {[%clk 0:00:05.8]} 1-0

[Event "*** Titled Tuesday Blitz"]
[Site "Chess.com"]
[Date "2020.11.10"]
[Round "3"]
[White "S2PAc"]
[Black "Obito24"]
[Result "0-1"]
[WhiteElo "2802"]
[BlackElo "2590"]
[TimeControl "180+1"]
[EndTime "10:32:36 PST"]
[Termination "Obito24 won on time"]

1. d4 {[%clk 0:02:59.1]} 1... Nf6 {[%clk 0:02:47.9]} 2. g3 {[%clk 0:02:58.9]}
2... d6 {[%clk 0:02:42.4]} 3. Bg2 {[%clk 0:02:58.8]} 3... g6 {[%clk 0:02:38.5]}
4. e4 {[%clk 0:02:58]} 4... Bg7 {[%clk 0:02:36.3]} 5. Nc3 {[%clk 0:02:58.5]}
5... O-O {[%clk 0:02:35.7]} 6. Nge2 {[%clk 0:02:59.1]} 6... c6 {[%clk
0:02:35.2]} 7. O-O {[%clk 0:02:57.6]} 7... e5 {[%clk 0:02:33.6]} 8. a4 {[%clk
0:02:57]} 8... a5 {[%clk 0:02:32.4]} 9. h3 {[%clk 0:02:56.5]} 9... Re8 {[%clk
0:02:24.8]} 10. Be3 {[%clk 0:02:56.3]} 10... Na6 {[%clk 0:02:23.9]} 11. g4
{[%clk 0:02:56.4]} 11... Qc7 {[%clk 0:02:21.8]} 12. Ng3 {[%clk 0:02:53.8]} 12...
Nb4 {[%clk 0:02:20.2]} 13. Nce2 {[%clk 0:02:45.4]} 13... b6 {[%clk 0:02:19.8]}
14. c3 {[%clk 0:02:45]} 14... Na6 {[%clk 0:02:19.4]} 15. g5 {[%clk 0:02:36.6]}
15... Nd7 {[%clk 0:02:14.1]} 16. f4 {[%clk 0:02:31.8]} 16... exd4 {[%clk
0:02:09.4]} 17. cxd4 {[%clk 0:02:16.7]} 17... Nb4 {[%clk 0:02:08.4]} 18. f5
{[%clk 0:02:10.7]} 18... Ba6 {[%clk 0:02:06.9]} 19. f6 {[%clk 0:02:11]} 19...
Bf8 {[%clk 0:02:05]} 20. Rc1 {[%clk 0:02:09]} 20... c5 {[%clk 0:01:59.4]} 21.
Qd2 {[%clk 0:01:57.3]} 21... Nd3 {[%clk 0:01:19.7]} 22. Rc3 {[%clk 0:01:53.6]}
22... d5 {[%clk 0:01:15.8]} 23. e5 {[%clk 0:01:36.9]} 23... c4 {[%clk
0:01:13.7]} 24. Qxd3 {[%clk 0:01:01.8]} 24... cxd3 {[%clk 0:01:11.1]} 25. Rxc7
{[%clk 0:01:02.7]} 25... dxe2 {[%clk 0:01:09.7]} 26. Rb1 {[%clk 0:00:48.6]}
26... Rad8 {[%clk 0:01:07.9]} 27. Bf3 {[%clk 0:00:40.1]} 27... Nxe5 {[%clk
0:00:54.2]} 28. dxe5 {[%clk 0:00:41]} 28... d4 {[%clk 0:00:53.4]} 29. Bf4 {[%clk
0:00:12.2]} 29... d3 {[%clk 0:00:52.9]} 30. Ne4 {[%clk 0:00:12.3]} 30... Bb4
{[%clk 0:00:46]} 31. Kf2 {[%clk 0:00:11.8]} 31... Rd4 {[%clk 0:00:25]} 32. Be3
{[%clk 0:00:09.9]} 32... Rd5 {[%clk 0:00:17.1]} 33. Bf4 {[%clk 0:00:03.9]} 33...
Rd4 {[%clk 0:00:16.5]} 34. Be3 {[%clk 0:00:03.7]} 34... Rd5 {[%clk 0:00:16.8]}
35. Nc3 {[%clk 0:00:04.6]} 35... Rdxe5 {[%clk 0:00:15.8]} 36. Bd2 {[%clk
0:00:05.2]} 36... Bc5+ {[%clk 0:00:14.1]} 37. Kg2 {[%clk 0:00:05]} 37... Bd6
{[%clk 0:00:13.3]} 38. Rd7 {[%clk 0:00:04.3]} 38... Bc5 {[%clk 0:00:13]} 39. Re1
{[%clk 0:00:03.2]} 39... Be3 {[%clk 0:00:11.6]} 40. Bxe3 {[%clk 0:00:02.2]}
40... Rxe3 {[%clk 0:00:12.5]} 41. Nd5 {[%clk 0:00:02.7]} 41... d2 {[%clk
0:00:12.2]} 42. Ne7+ {[%clk 0:00:03]} 42... R3xe7 {[%clk 0:00:12.5]} 43. Rxd2
{[%clk 0:00:03.4]} 43... Re3 {[%clk 0:00:12]} 44. Kf2 {[%clk 0:00:03.1]} 44...
R3e5 {[%clk 0:00:11.9]} 45. h4 {[%clk 0:00:03.1]} 45... h6 {[%clk 0:00:12.1]}
46. Bxe2 {[%clk 0:00:01.8]} 46... hxg5 {[%clk 0:00:08.4]} 47. hxg5 {[%clk
0:00:02.7]} 47... Rf5+ {[%clk 0:00:07.7]} 48. Kg3 {[%clk 0:00:01.8]} 48... Re3+
{[%clk 0:00:07.2]} 0-1

[Event "*** Titled Tuesday Blitz"]
[Site "Chess.com"]
[Date "2020.11.10"]
[Round "3"]
[White "Unknown_IM"]
[Black "26andrej26"]
[Result "1-0"]
[WhiteElo "2363"]
[BlackElo "2531"]
[TimeControl "180+1"]
[EndTime "10:32:36 PST"]
[Termination "Unknown_IM won by resignation"]

1. e4 {[%clk 0:03:00.9]} 1... c5 {[%clk 0:02:59.8]} 2. Nf3 {[%clk 0:02:58.7]}
2... d6 {[%clk 0:03:00.3]} 3. c3 {[%clk 0:02:58.8]} 3... Nf6 {[%clk 0:03:00.6]}
4. Be2 {[%clk 0:02:58.7]} 4... g6 {[%clk 0:03:01.1]} 5. O-O {[%clk 0:02:57.9]}
5... Bg7 {[%clk 0:03:01.6]} 6. Bb5+ {[%clk 0:02:57.7]} 6... Bd7 {[%clk
0:02:57.6]} 7. Bxd7+ {[%clk 0:02:57.6]} 7... Nbxd7 {[%clk 0:02:57.2]} 8. Re1
{[%clk 0:02:57.6]} 8... O-O {[%clk 0:02:56.4]} 9. d4 {[%clk 0:02:57.1]} 9... e5
{[%clk 0:02:57]} 10. h3 {[%clk 0:02:54.5]} 10... Re8 {[%clk 0:02:53.9]} 11. d5
{[%clk 0:02:52.7]} 11... h6 {[%clk 0:02:49.4]} 12. a4 {[%clk 0:02:52.1]} 12...
Nh5 {[%clk 0:02:47.3]} 13. Na3 {[%clk 0:02:51]} 13... Nf4 {[%clk 0:02:35.3]} 14.
Bxf4 {[%clk 0:02:49.3]} 14... exf4 {[%clk 0:02:35.3]} 15. Nc4 {[%clk 0:02:49.8]}
15... Nf6 {[%clk 0:02:24.7]} 16. Qd3 {[%clk 0:02:16.1]} 16... Qd7 {[%clk
0:02:21.4]} 17. Rab1 {[%clk 0:02:07.3]} 17... Rad8 {[%clk 0:02:19.9]} 18. b3
{[%clk 0:01:59.9]} 18... Re7 {[%clk 0:01:40.6]} 19. Rbd1 {[%clk 0:01:50.9]}
19... Rde8 {[%clk 0:01:32.2]} 20. Nxd6 {[%clk 0:01:50.7]} 20... Qxd6 {[%clk
0:01:27.4]} 21. e5 {[%clk 0:01:50.9]} 21... Qxd5 {[%clk 0:01:27.8]} 22. Qxd5
{[%clk 0:01:49.1]} 22... Nxd5 {[%clk 0:01:28.7]} 23. Rxd5 {[%clk 0:01:49.6]}
23... b6 {[%clk 0:01:26.9]} 24. Re4 {[%clk 0:01:43.3]} 24... g5 {[%clk
0:01:26.7]} 25. c4 {[%clk 0:01:35.7]} 25... Kh7 {[%clk 0:01:07.3]} 26. h4 {[%clk
0:01:18.4]} 26... Kg6 {[%clk 0:01:05.9]} 27. hxg5 {[%clk 0:01:18.1]} 27... hxg5
{[%clk 0:01:06.8]} 28. g3 {[%clk 0:01:17.5]} 28... Kf5 {[%clk 0:01:03.1]} 29.
Re2 {[%clk 0:01:08.6]} 29... Bxe5 {[%clk 0:00:55.6]} 30. g4+ {[%clk 0:01:00.8]}
30... Kf6 {[%clk 0:00:33.9]} 31. Kg2 {[%clk 0:00:42]} 31... Re6 {[%clk
0:00:21.4]} 32. Kg1 {[%clk 0:00:38.9]} 32... R8e7 {[%clk 0:00:20.2]} 33. Kg2
{[%clk 0:00:38.7]} 33... a5 {[%clk 0:00:19.3]} 34. Kg1 {[%clk 0:00:36.9]} 34...
Re8 {[%clk 0:00:13.9]} 35. Kg2 {[%clk 0:00:34.9]} 35... R8e7 {[%clk 0:00:10.4]}
36. Kf1 {[%clk 0:00:13.8]} 36... Bc3 {[%clk 0:00:10.2]} 37. Rf5+ {[%clk
0:00:13]} 37... Kg7 {[%clk 0:00:08.8]} 38. Rxg5+ {[%clk 0:00:13.3]} 38... Kf8
{[%clk 0:00:09]} 39. Rxe6 {[%clk 0:00:13.5]} 39... fxe6 {[%clk 0:00:08.4]} 40.
Rh5 {[%clk 0:00:12.6]} 40... e5 {[%clk 0:00:07.6]} 41. Rh6 {[%clk 0:00:12.7]}
41... e4 {[%clk 0:00:07.3]} 42. Ng5 {[%clk 0:00:13.3]} 42... e3 {[%clk 0:00:07]}
43. Ne6+ {[%clk 0:00:13.3]} 43... Kf7 {[%clk 0:00:06.5]} 44. Nxf4 {[%clk
0:00:13.8]} 44... e2+ {[%clk 0:00:06]} 45. Nxe2 {[%clk 0:00:13.6]} 45... Bd2
{[%clk 0:00:04.6]} 46. Rh7+ {[%clk 0:00:13.8]} 46... Ke8 {[%clk 0:00:04.2]} 47.
Rxe7+ {[%clk 0:00:14.7]} 47... Kxe7 {[%clk 0:00:05]} 48. f4 {[%clk 0:00:15.1]}
48... Ke6 {[%clk 0:00:04.8]} 49. Kf2 {[%clk 0:00:15.5]} 49... Bb4 {[%clk
0:00:03.8]} 50. Kf3 {[%clk 0:00:15.9]} 50... Kf6 {[%clk 0:00:04.5]} 51. Ke4
{[%clk 0:00:16.4]} 51... Ke6 {[%clk 0:00:04.9]} 52. g5 {[%clk 0:00:16.5]} 52...
Kf7 {[%clk 0:00:04.9]} 53. f5 {[%clk 0:00:16.8]} 53... Bd2 {[%clk 0:00:05.2]}
54. Nf4 {[%clk 0:00:17.3]} 54... Bc1 {[%clk 0:00:04.6]} 55. g6+ {[%clk
0:00:17.4]} 55... Kf6 {[%clk 0:00:04.9]} 56. Nd5+ {[%clk 0:00:18.3]} 56... Kg7
{[%clk 0:00:04.7]} 57. Nxb6 {[%clk 0:00:18.9]} 57... Kf6 {[%clk 0:00:04.7]} 58.
Nd7+ {[%clk 0:00:19.5]} 1-0

[Event "*** Titled Tuesday Blitz"]
[Site "Chess.com"]
[Date "2020.11.10"]
[Round "3"]
[White "MITerryble"]
[Black "Witik"]
[Result "1-0"]
[WhiteElo "2915"]
[BlackElo "2662"]
[TimeControl "180+1"]
[EndTime "10:32:40 PST"]
[Termination "MITerryble won on time"]

1. d4 {[%clk 0:03:00.9]} 1... d5 {[%clk 0:02:53.1]} 2. Bg5 {[%clk 0:03:00.8]}
2... h6 {[%clk 0:02:52.3]} 3. Bh4 {[%clk 0:03:00.6]} 3... c6 {[%clk 0:02:52.7]}
4. e3 {[%clk 0:03:00.6]} 4... Qb6 {[%clk 0:02:52.7]} 5. b3 {[%clk 0:03:00.6]}
5... Bf5 {[%clk 0:02:32]} 6. Nf3 {[%clk 0:03:00.2]} 6... e6 {[%clk 0:02:27.5]}
7. Bd3 {[%clk 0:03:00.3]} 7... Bxd3 {[%clk 0:02:21.3]} 8. Qxd3 {[%clk
0:03:01.2]} 8... Nd7 {[%clk 0:02:18.1]} 9. O-O {[%clk 0:03:00.7]} 9... Ngf6
{[%clk 0:02:15.5]} 10. Nbd2 {[%clk 0:03:01.2]} 10... Be7 {[%clk 0:02:04.5]} 11.
e4 {[%clk 0:02:57.1]} 11... dxe4 {[%clk 0:02:03.4]} 12. Nxe4 {[%clk 0:02:57.2]}
12... O-O {[%clk 0:02:01.3]} 13. a4 {[%clk 0:02:37.7]} 13... a5 {[%clk
0:01:55.4]} 14. Ned2 {[%clk 0:02:37.9]} 14... Rfe8 {[%clk 0:01:48]} 15. Nc4
{[%clk 0:02:32.1]} 15... Qa6 {[%clk 0:01:48.3]} 16. Rfd1 {[%clk 0:02:23.3]}
16... Rad8 {[%clk 0:01:44.8]} 17. Qd2 {[%clk 0:02:19.3]} 17... Bb4 {[%clk
0:01:37.9]} 18. c3 {[%clk 0:02:11.3]} 18... Be7 {[%clk 0:01:37.3]} 19. Qc2
{[%clk 0:02:03.8]} 19... Nb6 {[%clk 0:01:31.6]} 20. Nfe5 {[%clk 0:01:54.7]}
20... Nbd5 {[%clk 0:01:25.5]} 21. h3 {[%clk 0:01:31.1]} 21... Nh5 {[%clk
0:01:14.6]} 22. Bxe7 {[%clk 0:01:19.6]} 22... Rxe7 {[%clk 0:01:15.5]} 23. Re1
{[%clk 0:01:06.9]} 23... Qa7 {[%clk 0:01:01]} 24. Na3 {[%clk 0:00:46.5]} 24...
Qb8 {[%clk 0:00:51]} 25. g3 {[%clk 0:00:44.8]} 25... Nhf6 {[%clk 0:00:50.3]} 26.
Nac4 {[%clk 0:00:44]} 26... Qc7 {[%clk 0:00:49.3]} 27. Nd3 {[%clk 0:00:41.9]}
27... Nd7 {[%clk 0:00:38.1]} 28. Re4 {[%clk 0:00:41.3]} 28... c5 {[%clk
0:00:34.6]} 29. Rd1 {[%clk 0:00:32.1]} 29... cxd4 {[%clk 0:00:33]} 30. Rxd4
{[%clk 0:00:33]} 30... Rc8 {[%clk 0:00:32.8]} 31. Qd2 {[%clk 0:00:28.6]} 31...
Nc5 {[%clk 0:00:19.7]} 32. Nxc5 {[%clk 0:00:28.1]} 32... Qxc5 {[%clk 0:00:19.9]}
33. Qe1 {[%clk 0:00:24.6]} 33... Rd7 {[%clk 0:00:15.4]} 34. Qe5 {[%clk
0:00:22.5]} 34... b5 {[%clk 0:00:15.4]} 35. axb5 {[%clk 0:00:21.4]} 35... Qxb5
{[%clk 0:00:15.3]} 36. Nd6 {[%clk 0:00:21.8]} 36... Qb8 {[%clk 0:00:15.5]} 37.
Nc4 {[%clk 0:00:18.6]} 37... Rdc7 {[%clk 0:00:10.7]} 38. Nxa5 {[%clk 0:00:16.3]}
38... Rxc3 {[%clk 0:00:09.3]} 39. Qxb8 {[%clk 0:00:11.8]} 39... Rxb8 {[%clk
0:00:10.2]} 40. Rc4 {[%clk 0:00:11.8]} 40... Rxc4 {[%clk 0:00:07.8]} 41. bxc4
{[%clk 0:00:12.7]} 41... Nf6 {[%clk 0:00:07]} 42. Rc1 {[%clk 0:00:11.5]} 42...
Kf8 {[%clk 0:00:06.7]} 43. c5 {[%clk 0:00:11.2]} 43... Rc8 {[%clk 0:00:07.2]}
44. c6 {[%clk 0:00:10.7]} 44... Nd5 {[%clk 0:00:07.6]} 45. Kg2 {[%clk
0:00:10.4]} 45... Ke7 {[%clk 0:00:08.1]} 46. h4 {[%clk 0:00:09.8]} 46... Kd6
{[%clk 0:00:08.5]} 47. Nb7+ {[%clk 0:00:09.1]} 47... Kc7 {[%clk 0:00:07.8]} 48.
Nc5 {[%clk 0:00:08.8]} 48... Kd6 {[%clk 0:00:07.1]} 49. Ne4+ {[%clk 0:00:08.4]}
49... Ke5 {[%clk 0:00:06.2]} 50. Kf3 {[%clk 0:00:09.3]} 50... Ra8 {[%clk
0:00:04.3]} 51. Nd2 {[%clk 0:00:06.9]} 51... Rc8 {[%clk 0:00:03.8]} 52. Nc4+
{[%clk 0:00:06.6]} 52... Kd4 {[%clk 0:00:04.2]} 53. Nd6 {[%clk 0:00:06.6]} 1-0